lending/lending_fUSD_20250920
["ID","MTS","AMOUNT","RATE_DAILY","PERIOD"]
[386592986,1758411158526,-500.0,0.00024676,2]
[386592987,1758411158537,-500.0,0.00024676,2]
[386592988,1758411158547,-500.0,0.00024676,2]
[386592989,1758411158556,-500.0,0.00024676,2]
[386592990,1758411158565,-500.0,0.00024676,2]
[386592991,1758411158575,-500.0,0.00024676,2]
[386592992,1758411158583,-500.0,0.00024676,2]
[386592993,1758411158594,-500.0,0.00024676,2]
[386592994,1758411158604,-500.0,0.00024676,2]
[386592995,1758411158613,-500.0,0.00024676,2]
[386592996,1758411158623,-500.0,0.00024676,2]
[386592997,1758411158633,-500.0,0.00024676,2]
[386592998,1758411158643,-500.0,0.00024676,2]
[386592999,1758411158652,-500.0,0.00024676,2]
[386593000,1758411158662,-500.0,0.00024676,2]
[386593001,1758411158672,-500.0,0.00024676,2]
[386593002,1758411158681,-500.0,0.00024676,2]
[386593003,1758411158691,-500.0,0.00024676,2]
[386593004,1758411158700,-500.0,0.00024676,2]
[386593005,1758411158710,-500.0,0.00024676,2]
[386593006,1758411158719,-500.0,0.00024676,2]
[386593007,1758411158728,-500.0,0.00024676,2]
[386593008,1758411158738,-500.0,0.00024676,2]
[386593009,1758411158747,-500.0,0.00024676,2]
[386593010,1758411158757,-500.0,0.00024676,2]
[386593011,1758411158766,-500.0,0.00024676,2]
[386593012,1758411158776,-500.0,0.00024676,2]
[386593013,1758411158785,-500.0,0.00024676,2]
[386593014,1758411158795,-500.0,0.00024676,2]
[386593015,1758411158804,-500.0,0.00024676,2]
[386593016,1758411158814,-500.0,0.00024676,2]
[386593017,1758411158823,-500.0,0.00024676,2]
[386593018,1758411158833,-1779.51,0.0002468,2]
[386593019,1758411158843,-226.0,0.00024681,2]
[386593020,1758411158852,-707.3382384,0.00024681,2]
[386593021,1758411158862,-625.33,0.00024699,2]
[386593022,1758411158873,-570.05,0.00024699,2]
[386593023,1758411158883,-843.44,0.00024699,2]
[386593024,1758411158894,-500.0,0.00024699,2]
[386593025,1758411158904,-500.0,0.00024699,2]
[386593026,1758411158913,-500.0,0.00024699,2]
[386593027,1758411158924,-500.0,0.00024699,2]
[386593028,1758411158934,-766.39,0.00024699,2]
[386593029,1758411158944,-8640.32,0.00024699,2]
[386593030,1758411158953,-1779.51,0.00024699,2]
[386593031,1758411158964,-1779.51,0.00024699,2]
[386593032,1758411158974,-1779.51,0.00024699,2]
[386593033,1758411158984,-1779.51,0.00024699,2]
[386593034,1758411158994,-1779.51,0.00024699,2]
[386593035,1758411159004,-1022.23,0.00024699,2]
[386593036,1758411159014,-160.0,0.000247,7]
[386593037,1758411159024,-3019.62027748,0.000247,7]
[386593038,1758411159033,-200.0,0.0002471,7]
[386593039,1758411159042,-1355.37,0.00024712,7]
[386593040,1758411159052,-1355.37,0.00024712,7]
[386593041,1758411159061,-157.51,0.00024732,2]
[386593042,1758411159070,-168.0,0.00024759,2]
[386593043,1758411159080,-152.0,0.00024771,3]
[386593044,1758411159089,-150.0,0.00024775,2]
[386593045,1758411159099,-152.5,0.00024776,2]
[386593046,1758411159108,-258.02672151,0.00024777,2]
[386593047,1758411159118,-328.85758624,0.00024778,2]
[386593048,1758411159128,-399.68845097,0.0002478,2]
[386593049,1758411159137,-470.5193157,0.00024782,2]
[386593050,1758411159147,-541.35018043,0.00024783,2]
[386593051,1758411159156,-612.18104516,0.00024785,2]
[386593052,1758411159165,-683.01190989,0.00024787,2]
[386593053,1758411159174,-753.84277462,0.00024788,2]
[386593054,1758411159183,-824.67363934,0.0002479,2]
[386593055,1758411159193,-714.81,0.00024797,2]
[386593056,1758411159202,-500.0,0.00024797,2]
[386593057,1758411159218,-730.26,0.00024797,2]
[386593058,1758411159228,-913.18,0.00024797,2]
[386593059,1758411159239,-1828.95,0.00024797,2]
[386593060,1758411159249,-1932.87,0.00024798,2]
[386593061,1758411159260,-625.33,0.00024799,2]
[386593062,1758411159269,-625.33,0.00024799,2]
[386593063,1758411159279,-625.33,0.00024799,2]
[386593064,1758411159289,-570.05,0.00024799,2]
[386593065,1758411159298,-570.05,0.00024799,2]
[386593066,1758411159308,-570.05,0.00024799,2]
[386593067,1758411159318,-570.05,0.00024799,2]
[386593068,1758411159328,-570.13615982,0.00024799,2]
[386593069,1758411159337,-714.81,0.00024799,2]
[386593070,1758411159347,-714.81,0.00024799,2]
[386593071,1758411159357,-714.81,0.00024799,2]
[386593072,1758411159367,-843.44,0.00024799,2]
[386593073,1758411159377,-843.44,0.00024799,2]
[386593074,1758411159386,-843.44,0.00024799,2]
[386593075,1758411159396,-500.0,0.00024799,2]
[386593076,1758411159406,-500.0,0.00024799,2]
[386593077,1758411159416,-500.0,0.00024799,2]
[386593078,1758411159426,-500.0,0.00024799,2]
[386593079,1758411159436,-500.0,0.00024799,2]
[386593080,1758411159446,-500.0,0.00024799,2]
[386593081,1758411159456,-730.26,0.00024799,2]
[386593082,1758411159467,-730.26,0.00024799,2]
[386593083,1758411159482,-730.26,0.00024799,2]
[386593084,1758411159492,-500.0,0.00024799,2]
[386593085,1758411159503,-500.0,0.00024799,2]
[386593086,1758411159515,-500.0,0.00024799,2]
[386593087,1758411159526,-211.13085427,0.00024799,2]
[386593088,1758411159536,-1932.87,0.00024799,2]
[386593089,1758411159546,-1932.87,0.00024799,2]
[386593090,1758411159556,-1932.87,0.00024799,2]
[386593091,1758411159566,-1932.87,0.00024799,2]
[386593092,1758411159576,-1932.87,0.00024799,2]
[386593093,1758411159586,-1932.87,0.00024799,2]
[386593094,1758411159600,-1932.87,0.00024799,2]
[386593095,1758411159610,-509.5400806,0.00024799,2]
[386593096,1758411159622,-766.39,0.00024799,2]
[386593097,1758411159633,-766.39,0.00024799,2]
[386593098,1758411159643,-766.39,0.00024799,2]
[386593099,1758411159654,-8640.32,0.00024799,2]
[386593100,1758411159665,-8640.32,0.00024799,2]
[386593101,1758411159676,-8640.32,0.00024799,2]
[386593102,1758411159686,-8640.32,0.00024799,2]
[386593103,1758411159696,-8640.48676726,0.00024799,2]
[386593104,1758411159706,-913.18,0.00024799,2]
[386593105,1758411159715,-913.18,0.00024799,2]
[386593106,1758411159725,-913.18,0.00024799,2]
[386593107,1758411159736,-1779.51,0.00024799,2]
[386593108,1758411159746,-1779.51,0.00024799,2]
[386593109,1758411159756,-1779.51,0.00024799,2]
[386593110,1758411159766,-1022.23,0.00024799,2]
[386593111,1758411159776,-1022.23,0.00024799,2]
[386593112,1758411159786,-1022.23,0.00024799,2]
[386593113,1758411159796,-1022.23,0.00024799,2]
[386593114,1758411159806,-1022.27232575,0.00024799,2]
[386593115,1758411159816,-1828.95,0.00024799,2]
[386593116,1758411159825,-1828.95,0.00024799,2]
[386593117,1758411159835,-1828.95,0.00024799,2]
[386593118,1758411159845,-1828.95,0.00024799,2]
[386593119,1758411159855,-1829.01284943,0.00024799,2]
[386593120,1758411159865,-187.0,0.000248,2]
[386593121,1758411159875,-612551.594458,0.000248,2]
[386593122,1758411159885,-200.0,0.0002481,7]
[386593123,1758411159895,-413.2805578,0.00024829,2]
[386593124,1758411159905,-264.9133811,0.00024829,2]
[386593125,1758411159914,-409.69704218,0.00024829,2]
[386593126,1758411159925,-184.64360385,0.00024829,2]
[386593127,1758411159935,-400.0,0.0002483,2]
[386593128,1758411159945,-400.0,0.0002483,2]
[386593129,1758411159955,-400.0,0.0002483,2]
[386593130,1758411159964,-400.0,0.0002483,2]
[386593131,1758411159974,-400.0,0.0002483,2]
[386593132,1758411159984,-400.0,0.0002483,2]
[386593133,1758411159994,-400.0,0.0002483,2]
[386593134,1758411160004,-400.0,0.0002483,2]
[386593135,1758411160014,-400.0,0.0002483,2]
[386593136,1758411160023,-417.71598607,0.0002483,2]
[386593137,1758411160034,-403.38474892,0.0002483,2]
[386593138,1758411160044,-400.0,0.0002483,2]
[386593139,1758411160054,-400.0,0.0002483,2]
[386593140,1758411160064,-400.0,0.0002483,2]
[386593141,1758411160073,-400.0,0.0002483,2]
[386593142,1758411160083,-400.0,0.0002483,2]
[386593143,1758411160093,-2048.99,0.0002483,2]
[386593144,1758411160103,-1659.76,0.0002483,2]
[386593145,1758411160113,-1236.79,0.0002483,2]
[386593146,1758411160123,-4173.28,0.0002483,2]
[386593147,1758411160132,-4633.73,0.0002483,2]
[386593148,1758411160143,-6322.23,0.0002483,2]
[386593149,1758411160152,-4106.46,0.0002483,2]
[386593150,1758411160162,-400.0,0.0002483,2]
[386593151,1758411160172,-1453.11,0.0002483,2]
[386593152,1758411160182,-2677.19,0.0002483,2]
[386593153,1758411160192,-2457.51,0.0002483,2]
[386593154,1758411160202,-260.65215809,0.0002488,7]
[386593155,1758411160211,-1779.51,0.00024898,2]
[386593156,1758411160222,-625.33,0.00024899,2]
[386593157,1758411160232,-625.33,0.00024899,2]
[386593158,1758411160242,-625.33,0.00024899,2]
[386593159,1758411160252,-625.33,0.00024899,2]
[386593160,1758411160262,-625.33,0.00024899,2]
[386593161,1758411160272,-625.33,0.00024899,2]
[386593162,1758411160283,-625.33,0.00024899,2]
[386593163,1758411160293,-625.33,0.00024899,2]
[386593164,1758411160303,-714.81,0.00024899,2]
[386593165,1758411160312,-714.81,0.00024899,2]
[386593166,1758411160322,-714.81,0.00024899,2]
[386593167,1758411160332,-714.81,0.00024899,2]
[386593168,1758411160342,-714.81,0.00024899,2]
[386593169,1758411160352,-714.81,0.00024899,2]
[386593170,1758411160362,-714.81,0.00024899,2]
[386593171,1758411160372,-714.81,0.00024899,2]
[386593172,1758411160383,-843.44,0.00024899,2]
[386593173,1758411160393,-843.44,0.00024899,2]
[386593174,1758411160403,-843.44,0.00024899,2]
[386593175,1758411160413,-843.44,0.00024899,2]
[386593176,1758411160423,-843.44,0.00024899,2]
[386593177,1758411160432,-843.44,0.00024899,2]
[386593178,1758411160442,-843.44,0.00024899,2]
[386593179,1758411160452,-843.44,0.00024899,2]
[386593180,1758411160462,-500.0,0.00024899,2]
[386593181,1758411160472,-500.0,0.00024899,2]
[386593182,1758411160482,-500.0,0.00024899,2]
[386593183,1758411160492,-500.0,0.00024899,2]
[386593184,1758411160502,-500.0,0.00024899,2]
[386593185,1758411160512,-513.44311687,0.00024899,2]
[386593186,1758411160522,-561.74305882,0.00024899,2]
[386593187,1758411160532,-730.26,0.00024899,2]
[386593188,1758411160542,-730.26,0.00024899,2]
[386593189,1758411160553,-730.26,0.00024899,2]
[386593190,1758411160565,-730.26,0.00024899,2]
[386593191,1758411160576,-730.26,0.00024899,2]
[386593192,1758411160588,-730.26,0.00024899,2]
[386593193,1758411160599,-730.26,0.00024899,2]
[386593194,1758411160610,-730.26,0.00024899,2]
[386593195,1758411160620,-1932.87,0.00024899,2]
[386593196,1758411160630,-1932.87,0.00024899,2]
[386593197,1758411160639,-1932.87,0.00024899,2]
[386593198,1758411160650,-1932.87,0.00024899,2]
[386593199,1758411160660,-1932.87,0.00024899,2]
[386593200,1758411160669,-1933.07088846,0.00024899,2]
[386593201,1758411160680,-766.39,0.00024899,2]
[386593202,1758411160690,-766.39,0.00024899,2]
[386593203,1758411160702,-766.39,0.00024899,2]
[386593204,1758411160714,-766.39,0.00024899,2]
[386593205,1758411160725,-766.39,0.00024899,2]
[386593206,1758411160736,-766.39,0.00024899,2]
[386593207,1758411160747,-766.39,0.00024899,2]
[386593208,1758411160758,-766.39,0.00024899,2]
[386593209,1758411160768,-913.18,0.00024899,2]
[386593210,1758411160778,-913.18,0.00024899,2]
[386593211,1758411160788,-913.18,0.00024899,2]
[386593212,1758411160798,-913.18,0.00024899,2]
[386593213,1758411160808,-913.18,0.00024899,2]
[386593214,1758411160818,-913.18,0.00024899,2]
[386593215,1758411160828,-913.18,0.00024899,2]
[386593216,1758411160837,-913.18,0.00024899,2]
[386593217,1758411160848,-1779.51,0.00024899,2]
[386593218,1758411160858,-1779.51,0.00024899,2]
[386593219,1758411160868,-1779.51,0.00024899,2]
[386593220,1758411160880,-1779.51,0.00024899,2]
[386593221,1758411160892,-1779.72396144,0.00024899,2]
[386593222,1758411160903,-92981.71,0.000249,7]
[386593223,1758411160915,-178377.56158767,0.000249,2]
[386593224,1758411162948,-0.0094924,0.00022188,7]
[386593225,1758411200085,3733.87655543,0.0003,120]
[386593226,1758411222359,169.67,0.00017385,2]
[386593363,1758411294844,197.49,0.00027117,120]
[386593512,1758411593233,153.98,0.00010501,2]
[386593513,1758411593463,153.98,0.00012251,2]
[386593515,1758411593869,153.98,0.00014001,2]
[386593517,1758411594342,153.98,0.00015751,2]
[386593518,1758411594454,153.98,0.00017501,2]
[386593545,1758411653955,1000.0,0.00024657,120]
[386593546,1758411654173,187.45868,0.00024657,120]
[386593622,1758411844488,500.0,0.00013699,2]
[386593711,1758412231787,-153.98,0.00019251,2]
[386593712,1758412231798,-400.0,0.00019452,2]
[386593713,1758412231809,-167.05310542,0.00019525,2]
[386593714,1758412231818,-160.0,0.00019624,2]
[386593715,1758412231828,-247.52652518,0.00019941,2]
[386593717,1758412231839,-952.47347482,0.00019941,2]
[386593718,1758412231850,-879.52652518,0.00019942,2]
[386593720,1758412231862,-666.0,0.00019942,2]
[386593724,1758412231911,-632.219832,0.00019942,2]
[386593725,1758412231924,-400.0,0.00019942,2]
[386593726,1758412231937,-801.64195998,0.00019942,2]
[386593727,1758412231948,-586.51541478,0.00019942,2]
[386593728,1758412231960,-741.47776478,0.00019942,2]
[386593729,1758412231972,-780.94247861,0.00019942,2]
[386593730,1758412232010,-4107.55056209,0.00019942,2]
[386593731,1758412232023,-5603.99560223,0.00019942,2]
[386593732,1758412232036,-889.96405998,0.00019942,2]
[386593733,1758412232049,-870.90512706,0.00019942,2]
[386593734,1758412232061,-6035.0029764,0.00019942,2]
[386593735,1758412232076,-8621.8425694,0.00019942,2]
[386593736,1758412232086,-5714.64004367,0.0002,2]
[386593737,1758412232097,-5312.32995633,0.0002,2]
[386593738,1758412232107,-1234.59,0.0002,2]
[386593739,1758412232116,-151.9,0.0002,2]
[386593740,1758412232126,-520.76,0.0002,2]
[386593741,1758412232136,-11026.97,0.000201,2]
[386593742,1758412232146,-151.0,0.00020141,2]
[386593743,1758412232156,-151.0,0.00020141,2]
[386593744,1758412232165,-151.0,0.00020148,2]
[386593745,1758412232175,-151.0,0.00020152,2]
[386593746,1758412232184,-167.87,0.00020206,2]
[386593747,1758412232194,-159.39,0.00020228,2]
[386593748,1758412232203,-5911.67353516,0.00020256,2]
[386593749,1758412232215,-924.79646484,0.00020256,2]
[386593750,1758412232226,-200.0,0.00020258,2]
[386593751,1758412232236,-150.25155043,0.00020441,4]
[386593752,1758412232246,-150.0,0.00020441,4]
[386593753,1758412232255,-150.0,0.00020441,4]
[386593754,1758412232265,-150.0,0.00020441,4]
[386593755,1758412232274,-150.0,0.00020441,4]
[386593756,1758412232284,-150.0,0.00020441,4]
[386593757,1758412232294,-150.0,0.00020441,4]
[386593758,1758412232304,-150.0,0.00020441,4]
[386593759,1758412232313,-150.0,0.00020441,4]
[386593760,1758412232323,-150.0,0.00020441,4]
[386593761,1758412232333,-150.0,0.00020441,4]
[386593762,1758412232342,-150.0,0.00020441,4]
[386593763,1758412232352,-150.0,0.00020441,4]
[386593764,1758412232362,-150.0,0.00020441,4]
[386593765,1758412232371,-4.7982781,0.00020441,4]
[386593766,1758412232383,-145.2017219,0.00020441,4]
[386593767,1758412232392,-150.0,0.00020441,4]
[386593768,1758412232401,-150.0,0.00020441,4]
[386593769,1758412232410,-200.0,0.00020534,2]
[386593770,1758412232419,-5009.33808129,0.00020777,2]
[386593771,1758412232429,-1318.45,0.00020802,2]
[386593772,1758412232439,-3351.79,0.00020843,2]
[386593773,1758412232450,-150.0,0.00020895,4]
[386593774,1758412232460,-150.0,0.00020942,2]
[386593775,1758412232470,-150.0,0.00020986,2]
[386593776,1758412232479,-153.98,0.00021001,2]
[386593777,1758412232488,-150.0,0.00021009,4]
[386593778,1758412232497,-887.48164711,0.00021022,2]
[386593779,1758412232507,-250.0,0.00021051,2]
[386593780,1758412232518,-150.0,0.00021176,2]
[386593781,1758412232528,-10147.06075578,0.00021179,2]
[386593782,1758412232540,-3183.1114532,0.00021179,2]
[386593783,1758412232549,-150.0,0.00021198,4]
[386593784,1758412232559,-150.0,0.00021198,4]
[386593785,1758412232568,-11026.97,0.000212,2]
[386593786,1758412232579,-150.0,0.0002135,4]
[386593787,1758412232588,-150.0,0.00021419,7]
[386593788,1758412232598,-167.87,0.00021553,2]
[386593789,1758412232607,-150.0,0.00021577,4]
[386593790,1758412232616,-150.0,0.00021577,4]
[386593791,1758412232626,-150.0,0.00021577,4]
[386593792,1758412232636,-150.0,0.00021577,4]
[386593793,1758412232648,-150.0,0.00021577,4]
[386593794,1758412232658,-300.0,0.000216,7]
[386593795,1758412232668,-197.49,0.00021694,2]
[386593796,1758412232677,-600.0,0.000217,7]
[386593797,1758412232686,-151.22,0.00021702,2]
[386593798,1758412232695,-1088.0,0.00021739,2]
[386593799,1758412232704,-223.0,0.00021782,2]
[386593800,1758412232715,-900.0,0.000218,7]
[386593801,1758412232725,-150.0,0.00021804,4]
[386593802,1758412232735,-1003.08931328,0.00021817,2]
[386593803,1758412232744,-917.09602784,0.00021817,2]
[386593804,1758412232754,-163.82234716,0.00021817,2]
[386593805,1758412232764,-1680.0,0.0002182,2]
[386593806,1758412232773,-1200.0,0.000219,7]
[386593807,1758412232783,-9169.15444786,0.000219,2]
[386593808,1758412232802,-1857.81555214,0.000219,2]
[386593809,1758412232813,-183.18,0.00021907,2]
[386593810,1758412232823,-594.82,0.00021907,2]
[386593811,1758412232832,-211.86639179,0.00021916,2]
[386593812,1758412232842,-163.65785088,0.00021916,2]
[386593813,1758412232851,-522.17,0.00021917,2]
[386593814,1758412232861,-400.0,0.00021917,2]
[386593815,1758412232870,-901.21,0.00021917,2]
[386593816,1758412232880,-400.0,0.00021917,2]
[386593817,1758412232890,-421.57,0.00021917,2]
[386593818,1758412232899,-474.60213862,0.00021917,2]
[386593819,1758412232908,-550.45,0.00021917,2]
[386593820,1758412232918,-937.76,0.00021917,2]
[386593821,1758412232927,-400.0,0.00021917,2]
[386593822,1758412232936,-400.0,0.00021917,2]
[386593823,1758412232946,-400.0,0.00021917,2]
[386593824,1758412232955,-400.0,0.00021917,2]
[386593825,1758412232964,-400.0,0.00021917,2]
[386593826,1758412232974,-400.0,0.00021917,2]
[386593827,1758412232984,-479.79,0.00021917,2]
[386593828,1758412232999,-400.0,0.00021917,2]
[386593829,1758412233008,-454.02,0.00021917,2]
[386593830,1758412233018,-400.0,0.00021917,2]
[386593831,1758412233027,-1225.59,0.00021917,2]
[386593832,1758412233039,-400.0,0.00021917,2]
[386593833,1758412233049,-400.0,0.00021917,2]
[386593834,1758412233058,-400.0,0.00021917,2]
[386593835,1758412233069,-400.0,0.00021917,2]
[386593836,1758412233079,-400.0,0.00021917,2]
[386593837,1758412233089,-400.0,0.00021917,2]
[386593838,1758412233099,-400.0,0.00021917,2]
[386593839,1758412233109,-400.0,0.00021917,2]
[386593840,1758412233118,-672.9,0.00021917,2]
[386593841,1758412233128,-400.0,0.00021917,2]
[386593842,1758412233138,-400.0,0.00021917,2]
[386593843,1758412233148,-400.0,0.00021917,2]
[386593844,1758412233158,-471.15068759,0.00021917,2]
[386593845,1758412233168,-614.43,0.00021917,2]
[386593846,1758412233178,-400.0,0.00021917,2]
[386593847,1758412233187,-490.6,0.00021917,2]
[386593848,1758412233197,-400.0,0.00021917,2]
[386593849,1758412233207,-400.0,0.00021917,2]
[386593850,1758412233216,-617.99,0.00021917,2]
[386593851,1758412233225,-400.0,0.00021917,2]
[386593852,1758412233235,-484.86,0.00021917,2]
[386593853,1758412233244,-400.0,0.00021917,2]
[386593854,1758412233254,-400.0,0.00021917,2]
[386593855,1758412233263,-400.0,0.00021917,2]
[386593856,1758412233272,-400.0,0.00021917,2]
[386593857,1758412233282,-400.0,0.00021917,2]
[386593858,1758412233291,-400.0,0.00021917,2]
[386593859,1758412233300,-400.0,0.00021917,2]
[386593860,1758412233310,-400.0,0.00021917,2]
[386593861,1758412233319,-400.0,0.00021917,2]
[386593862,1758412233328,-400.0,0.00021917,2]
[386593863,1758412233338,-400.0,0.00021917,2]
[386593864,1758412233347,-400.0,0.00021917,2]
[386593865,1758412233356,-400.0,0.00021917,2]
[386593866,1758412233365,-400.0,0.00021917,2]
[386593867,1758412233374,-421.48131003,0.00021917,2]
[386593868,1758412233383,-882.98,0.00021917,2]
[386593869,1758412233392,-1000.0,0.00021917,2]
[386593870,1758412233402,-400.0,0.00021917,2]
[386593871,1758412233412,-896.55,0.00021917,2]
[386593872,1758412233422,-400.0,0.00021917,2]
[386593873,1758412233431,-400.0,0.00021917,2]
[386593874,1758412233441,-400.0,0.00021917,2]
[386593875,1758412233451,-400.0,0.00021917,2]
[386593876,1758412233460,-400.0,0.00021917,2]
[386593877,1758412233472,-400.0,0.00021917,2]
[386593878,1758412233482,-400.0,0.00021917,2]
[386593879,1758412233491,-400.0,0.00021917,2]
[386593880,1758412233501,-400.0,0.00021917,2]
[386593881,1758412233511,-400.0,0.00021917,2]
[386593882,1758412233521,-556.84,0.00021917,2]
[386593883,1758412233530,-400.0,0.00021917,2]
[386593884,1758412233540,-487.22,0.00021917,2]
[386593885,1758412233549,-400.0,0.00021917,2]
[386593886,1758412233559,-400.0,0.00021917,2]
[386593887,1758412233568,-400.0,0.00021917,2]
[386593888,1758412233578,-379.99950026,0.00021917,2]
[386593889,1758412233588,-400.0,0.00021917,2]
[386593890,1758412233597,-400.0,0.00021917,2]
[386593891,1758412233607,-400.0,0.00021917,2]
[386593892,1758412233616,-400.0,0.00021917,2]
[386593893,1758412233625,-1071.13,0.00021917,2]
[386593894,1758412233635,-400.0,0.00021917,2]
[386593895,1758412233645,-400.0,0.00021917,2]
[386593896,1758412233654,-400.0,0.00021917,2]
[386593897,1758412233664,-444.99,0.00021917,2]
[386593898,1758412233673,-400.0,0.00021917,2]
[386593899,1758412233683,-400.0,0.00021917,2]
[386593900,1758412233692,-400.0,0.00021917,2]
[386593901,1758412233702,-692.08,0.00021917,2]
[386593902,1758412233711,-400.0,0.00021917,2]
[386593903,1758412233720,-400.0,0.00021917,2]
[386593904,1758412233729,-400.0,0.00021917,2]
[386593905,1758412233739,-400.0,0.00021917,2]
[386593906,1758412233748,-400.0,0.00021917,2]
[386593907,1758412233757,-400.0,0.00021917,2]
[386593908,1758412233767,-717.03,0.00021917,2]
[386593909,1758412233777,-562.7307703,0.00021917,2]
[386593910,1758412233786,-400.0,0.00021917,2]
[386593911,1758412233795,-400.0,0.00021917,2]
[386593912,1758412233805,-400.0,0.00021917,2]
[386593913,1758412233815,-452.6751731,0.00021917,2]
[386593914,1758412233824,-487.0,0.00021917,2]
[386593915,1758412233835,-472.64874284,0.00021917,2]
[386593916,1758412233844,-800.59,0.00021917,2]
[386593917,1758412233853,-420.85,0.00021917,2]
[386593918,1758412233863,-400.0,0.00021917,2]
[386593919,1758412233872,-400.0,0.00021917,2]
[386593920,1758412233882,-400.0,0.00021917,2]
[386593921,1758412233891,-400.0,0.00021917,2]
[386593922,1758412233900,-400.0,0.00021917,2]
[386593923,1758412233911,-400.0,0.00021917,2]
[386593924,1758412233921,-400.0,0.00021917,2]
[386593925,1758412233930,-400.0,0.00021917,2]
[386593926,1758412233939,-400.0,0.00021917,2]
[386593927,1758412233949,-400.0,0.00021917,2]
[386593928,1758412233958,-716.67,0.00021917,2]
[386593929,1758412233968,-400.0,0.00021917,2]
[386593930,1758412233977,-400.0,0.00021917,2]
[386593931,1758412233988,-400.0,0.00021917,2]
[386593932,1758412233999,-400.0,0.00021917,2]
[386593933,1758412234009,-400.0,0.00021917,2]
[386593934,1758412234018,-400.0,0.00021917,2]
[386593935,1758412234028,-400.0,0.00021917,2]
[386593936,1758412234038,-400.0,0.00021917,2]
[386593937,1758412234047,-400.0,0.00021917,2]
[386593938,1758412234056,-400.0,0.00021917,2]
[386593939,1758412234066,-400.0,0.00021917,2]
[386593940,1758412234076,-400.0,0.00021917,2]
[386593941,1758412234085,-400.0,0.00021917,2]
[386593942,1758412234095,-400.0,0.00021917,2]
[386593943,1758412234104,-400.0,0.00021917,2]
[386593944,1758412234114,-1052.21,0.00021917,2]
[386593945,1758412234123,-400.0,0.00021917,2]
[386593946,1758412234133,-405.56,0.00021917,2]
[386593947,1758412234142,-400.0,0.00021917,2]
[386593948,1758412234152,-400.0,0.00021917,2]
[386593949,1758412234161,-400.0,0.00021917,2]
[386593950,1758412234170,-400.0,0.00021917,2]
[386593951,1758412234180,-400.0,0.00021917,2]
[386593952,1758412234189,-400.0,0.00021917,2]
[386593953,1758412234198,-400.0,0.00021917,2]
[386593954,1758412234208,-400.0,0.00021917,2]
[386593955,1758412234218,-400.0,0.00021917,2]
[386593956,1758412234228,-400.0,0.00021917,2]
[386593957,1758412234237,-400.0,0.00021917,2]
[386593958,1758412234246,-400.0,0.00021917,2]
[386593959,1758412234256,-743.48,0.00021917,2]
[386593960,1758412234266,-400.0,0.00021917,2]
[386593961,1758412234276,-400.0,0.00021917,2]
[386593962,1758412234285,-848.84,0.00021917,2]
[386593963,1758412234295,-400.0,0.00021917,2]
[386593964,1758412234304,-562.86,0.00021917,2]
[386593965,1758412234314,-400.0,0.00021917,2]